fUST/lending_fUST_20250929
["ID","MTS","AMOUNT","RATE_DAILY","PERIOD"]
[388378914,1759138238563,-500.0,0.00025551,2]
[388378915,1759138238572,-250.0,0.00025551,2]
[388378916,1759138238582,-250.0,0.00025551,2]
[388378917,1759138238591,-500.0,0.00025551,2]
[388378918,1759138238600,-500.0,0.00025551,2]
[388378919,1759138238609,-250.0,0.00025551,2]
[388378920,1759138238619,-151.0,0.00025551,2]
[388378921,1759138238628,-500.0,0.00025551,2]
[388378922,1759138238639,-250.0,0.00025551,2]
[388378923,1759138238650,-151.0,0.00025551,2]
[388378924,1759138238660,-500.0,0.00025551,2]
[388378925,1759138238670,-286.415989,0.00025551,2]
[388378926,1759138238679,-151.0,0.00025551,2]
[388378927,1759138238688,-500.0,0.00025551,2]
[388378928,1759138238698,-151.0,0.00025551,2]
[388378929,1759138238709,-500.0,0.00025551,2]
[388378930,1759138238722,-151.0,0.00025551,2]
[388378931,1759138238732,-500.0,0.00025551,2]
[388378932,1759138238742,-151.0,0.00025551,2]
[388378933,1759138238751,-500.0,0.00025551,2]
[388378934,1759138238760,-151.0,0.00025551,2]
[388378935,1759138238770,-500.0,0.00025551,2]
[388378936,1759138238779,-151.0,0.00025551,2]
[388378937,1759138238788,-611.59103465,0.00025551,2]
[388378938,1759138238798,-151.0,0.00025551,2]
[388378939,1759138238807,-151.0,0.00025551,2]
[388378940,1759138238826,-151.0,0.00025551,2]
[388378941,1759138238837,-151.0,0.00025551,2]
[388378942,1759138238847,-151.0,0.00025551,2]
[388378943,1759138238856,-151.0,0.00025551,2]
[388378944,1759138238867,-151.0,0.00025551,2]
[388378945,1759138238877,-151.0,0.00025551,2]
[388378946,1759138238887,-151.0,0.00025551,2]
[388378947,1759138238897,-151.0,0.00025551,2]
[388378948,1759138238907,-151.0,0.00025551,2]
[388378949,1759138238918,-151.0,0.00025551,2]
[388378950,1759138238927,-151.0,0.00025551,2]
[388378951,1759138238937,-502.17913071,0.00025555,2]
[388378952,1759138238947,-500.0,0.00025556,10]
[388378953,1759138238957,-200.0,0.00025556,10]
[388378954,1759138238967,-200.0,0.00025556,10]
[388378955,1759138238978,-200.0,0.00025556,10]
[388378956,1759138238988,-200.0,0.00025556,10]
[388378957,1759138238998,-200.0,0.00025556,10]
[388378958,1759138239008,-200.0,0.00025556,10]
[388378959,1759138239018,-200.0,0.00025556,10]
[388378960,1759138239028,-200.0,0.00025556,10]
[388378961,1759138239038,-200.0,0.00025556,10]
[388378962,1759138239047,-310.290003,0.00025556,10]
[388378963,1759138239060,-151.0,0.00025566,7]
[388378964,1759138239070,-157.967243,0.00025566,7]
[388378965,1759138239080,-151.0,0.00025566,7]
[388378966,1759138239091,-151.0,0.00025566,7]
[388378967,1759138239103,-151.0,0.00025566,7]
[388378968,1759138239113,-4498.904458,0.00025566,7]
[388378969,1759138239123,-151.0,0.00025566,7]
[388378970,1759138239133,-4498.904458,0.00025566,7]
[388378971,1759138239144,-4498.904458,0.00025566,7]
[388378972,1759138239153,-151.0,0.00025566,7]
[388378973,1759138239163,-4498.904458,0.00025566,7]
[388378974,1759138239173,-151.0,0.00025566,7]
[388378975,1759138239183,-151.0,0.00025566,7]
[388378976,1759138239193,-233.87608454,0.00025566,7]
[388378977,1759138239203,-189.40172226,0.00025566,7]
[388378978,1759138239212,-151.0,0.00025566,7]
[388378979,1759138239222,-677.891366,0.00025566,7]
[388378980,1759138239231,-151.576217,0.00025566,7]
[388378981,1759138239241,-677.891366,0.00025566,7]
[388378982,1759138239250,-677.891366,0.00025566,7]
[388378983,1759138239260,-677.891366,0.00025566,7]
[388378984,1759138239270,-151.0,0.00025566,7]
[388378985,1759138239279,-151.0,0.00025566,7]
[388378986,1759138239289,-151.0,0.00025566,7]
[388378987,1759138239299,-195.85823,0.00025566,7]
[388378988,1759138239308,-151.0,0.00025566,7]
[388378989,1759138239319,-151.0,0.00025566,7]
[388378990,1759138239329,-370000.0,0.00025566,2]
[388378991,1759138239338,-6304.9904724,0.00025567,2]
[388378992,1759138239348,-500.0,0.00025573,2]
[388378993,1759138239357,-500.0,0.00025573,2]
[388378994,1759138239367,-500.0,0.00025573,2]
[388378995,1759138239376,-159.00094784,0.00025573,2]
[388378996,1759138239386,-500.0,0.00025573,2]
[388378997,1759138239395,-176.47569828,0.00025573,2]
[388378998,1759138239404,-424.87107751,0.00025573,2]
[388378999,1759138239414,-500.0,0.00025573,2]
[388379000,1759138239424,-500.0,0.00025573,2]
[388379001,1759138239434,-500.0,0.00025573,2]
[388379002,1759138239443,-439.50350651,0.00025573,2]
[388379003,1759138239452,-505.07964594,0.00025573,2]
[388379004,1759138239461,-500.0,0.00025573,2]
[388379005,1759138239470,-500.0,0.00025573,2]
[388379006,1759138239479,-500.0,0.00025573,2]
[388379007,1759138239489,-500.0,0.00025573,2]
[388379008,1759138239499,-511.99717502,0.00025573,2]
[388379009,1759138239508,-500.0,0.00025573,2]
[388379010,1759138239517,-500.0,0.00025573,2]
[388379011,1759138239526,-500.0,0.00025573,2]
[388379012,1759138239535,-502.39929646,0.00025573,2]
[388379013,1759138239544,-500.0,0.00025573,2]
[388379014,1759138239553,-500.0,0.00025573,2]
[388379015,1759138239562,-500.0,0.00025573,2]
[388379016,1759138239571,-500.0,0.00025573,2]
[388379017,1759138239582,-502.54233964,0.00025573,2]
[388379018,1759138239591,-500.0,0.00025573,2]
[388379019,1759138239600,-500.0,0.00025573,2]
[388379020,1759138239609,-500.0,0.00025573,2]
[388379021,1759138239617,-500.0,0.00025573,2]
[388379022,1759138239626,-500.0,0.00025573,2]
[388379023,1759138239636,-500.0,0.00025573,2]
[388379025,1759138239645,-500.0,0.00025573,2]
[388379026,1759138239654,-502.14044378,0.00025573,2]
[388379027,1759138239664,-502.68572863,0.00025573,2]
[388379028,1759138239673,-500.0,0.00025573,2]
[388379029,1759138239683,-500.0,0.00025573,2]
[388379030,1759138239692,-500.0,0.00025573,2]
[388379032,1759138239703,-500.0,0.00025573,2]
[388379033,1759138239713,-500.0,0.00025573,2]
[388379034,1759138239723,-500.0,0.00025573,2]
[388379035,1759138239733,-500.0,0.00025573,2]
[388379036,1759138239742,-500.0,0.00025573,2]
[388379037,1759138239751,-500.0,0.00025573,2]
[388379038,1759138239762,-322.0,0.00025598,2]
[388379039,1759138239773,-151.0,0.000256,13]
[388379040,1759138239785,-151.0,0.000256,16]
[388379041,1759138239794,-151.0,0.000256,20]
[388379042,1759138239803,-5714.37,0.000256,2]
[388379043,1759138239812,-203.05,0.00025686,2]
[388379044,1759138239822,-151.0,0.000257,18]
[388379045,1759138239831,-151.0,0.000257,20]
[388379046,1759138239840,-528.6557564,0.00025793,2]
[388379047,1759138239848,-151.0,0.000258,19]
[388379048,1759138239858,-151.0,0.000258,20]
[388379049,1759138239867,-151.0,0.000258,14]
[388379050,1759138239876,-151.0,0.000258,13]
[388379051,1759138239885,-500.0,0.0002583,10]
[388379052,1759138239896,-151.0,0.000259,18]
[388379053,1759138239905,-151.0,0.000259,13]
[388379054,1759138239915,-151.0,0.000259,16]
[388379055,1759138239924,-151.0,0.000259,17]
[388379056,1759138239933,-151.0,0.000259,10]
[388379057,1759138239943,-100000.0,0.0002599,2]
[388379058,1759138239952,-151.0,0.00026,11]
[388379059,1759138239962,-1635.0550947,0.00026,2]
[388379060,1759138239971,-151.0,0.00026099,2]
[388379061,1759138239980,-500.0,0.00026104,10]
[388379062,1759138239989,-1000.0,0.00026121,2]
[388379063,1759138239999,-420.63279281,0.00026121,2]
[388379064,1759138240008,-1000.0,0.00026121,2]
[388379065,1759138240017,-1000.0,0.00026121,2]
[388379066,1759138240026,-634.76196504,0.00026121,2]
[388379067,1759138240035,-1144.56035935,0.00026121,2]
[388379068,1759138240045,-1000.0,0.00026121,2]
[388379069,1759138240054,-1000.0,0.00026121,2]
[388379070,1759138240068,-1000.0,0.00026121,2]
[388379071,1759138240077,-1004.07337568,0.00026121,2]
[388379072,1759138240086,-1000.0,0.00026121,2]
[388379073,1759138240095,-1000.0,0.00026121,2]
[388379074,1759138240106,-1000.0,0.00026121,2]
[388379075,1759138240115,-1000.0,0.00026121,2]
[388379076,1759138240124,-1000.0,0.00026121,2]
[388379077,1759138240135,-1000.0,0.00026121,2]
[388379078,1759138240144,-1000.0,0.00026121,2]
[388379079,1759138240153,-360.25881793,0.00026121,2]
[388379080,1759138240163,-569.3614548,0.00026121,2]
[388379081,1759138240172,-267.99657385,0.00026121,2]
[388379082,1759138240182,-278.96412021,0.00026121,2]
[388379083,1759138240191,-1000.0,0.00026121,2]
[388379084,1759138240354,-1000.0,0.00026121,2]
[388379085,1759138240413,-1004.11672357,0.00026121,2]
[388379086,1759138240422,-1000.0,0.00026121,2]
[388379087,1759138240431,-1000.0,0.00026121,2]
[388379088,1759138240440,-1000.0,0.00026121,2]
[388379089,1759138240449,-1000.0,0.00026121,2]
[388379090,1759138240459,-1000.0,0.00026121,2]
[388379091,1759138240468,-1000.0,0.00026121,2]
[388379092,1759138240477,-1000.0,0.00026121,2]
[388379093,1759138240487,-151.0,0.000262,17]
[388379094,1759138240496,-1188.0,0.00026209,2]
[388379095,1759138240505,-5888.0,0.00026226,2]
[388379096,1759138240515,-1905.75,0.00026237,2]
[388379097,1759138240524,-1905.75,0.00026237,2]
[388379098,1759138240534,-1905.75,0.00026237,2]
[388379099,1759138240543,-1905.75,0.00026237,2]
[388379100,1759138240552,-1905.75,0.00026237,2]
[388379101,1759138240562,-1905.75,0.00026237,2]
[388379102,1759138240572,-170.64745108,0.00026274,30]
[388379103,1759138240581,-935.14075994,0.00026368,2]
[388379104,1759138240590,-151.0,0.00026376,7]
[388379105,1759138240599,-151.0,0.00026376,7]
[388379106,1759138240609,-242.679734,0.00026376,7]
[388379107,1759138240618,-151.0,0.00026376,7]
[388379108,1759138240627,-151.0,0.00026376,7]
[388379109,1759138240637,-166.987989,0.00026376,7]
[388379110,1759138240646,-151.0,0.00026376,7]
[388379111,1759138240656,-166.987989,0.00026376,7]
[388379112,1759138240665,-166.987989,0.00026376,7]
[388379113,1759138240675,-166.987989,0.00026376,7]
[388379114,1759138240685,-151.0,0.00026376,7]
[388379115,1759138240695,-151.0,0.00026376,7]
[388379116,1759138240704,-151.0,0.00026376,7]
[388379117,1759138240714,-1021.287304,0.00026376,7]
[388379118,1759138240724,-1021.287304,0.00026376,7]
[388379119,1759138240733,-151.0,0.00026376,7]
[388379120,1759138240742,-1021.287304,0.00026376,7]
[388379121,1759138240751,-1021.287304,0.00026376,7]
[388379122,1759138240761,-151.0,0.00026376,7]
[388379123,1759138240770,-151.0,0.00026376,7]
[388379124,1759138240779,-151.0,0.00026376,7]
[388379125,1759138240788,-151.0,0.00026376,7]
[388379126,1759138240797,-151.0,0.00026376,7]
[388379127,1759138240807,-151.0,0.00026376,7]
[388379128,1759138240817,-151.0,0.00026376,7]
[388379129,1759138240826,-176.201266,0.00026376,7]
[388379130,1759138240835,-151.0,0.00026376,7]
[388379131,1759138240845,-151.0,0.00026376,7]
[388379132,1759138240855,-234.265696,0.00026376,7]
[388379133,1759138240864,-234.265696,0.00026376,7]
[388379134,1759138240873,-234.265696,0.00026376,7]
[388379135,1759138240882,-234.265696,0.00026376,7]
[388379136,1759138240892,-151.0,0.00026376,7]
[388379137,1759138240901,-274.87894,0.00026376,7]
[388379138,1759138240910,-184.166231,0.00026376,7]
[388379139,1759138240919,-151.0,0.00026376,7]
[388379140,1759138240928,-151.0,0.00026376,7]
[388379141,1759138240937,-4498.904458,0.00026376,7]
[388379142,1759138240947,-151.0,0.00026376,7]
[388379143,1759138240956,-4498.904458,0.00026376,7]
[388379144,1759138240965,-4498.904458,0.00026376,7]
[388379145,1759138240975,-151.0,0.00026376,7]
[388379146,1759138240984,-4498.904458,0.00026376,7]
[388379147,1759138240993,-151.0,0.00026376,7]
[388379148,1759138241003,-151.0,0.00026376,7]
[388379149,1759138241012,-677.891366,0.00026376,7]
[388379150,1759138241022,-677.891366,0.00026376,7]
[388379151,1759138241031,-677.891366,0.00026376,7]
[388379152,1759138241041,-677.891366,0.00026376,7]
[388379153,1759138241050,-151.0,0.00026376,7]
[388379154,1759138241064,-195.85823,0.00026376,7]
[388379155,1759138241074,-151.0,0.00026376,7]
[388379156,1759138241083,-500.0,0.00026378,10]
[388379157,1759138241094,-151.0,0.000264,16]
[388379158,1759138241105,-1905.75,0.00026451,2]
[388379159,1759138241115,-1945.23039059,0.000265,2]
[388379160,1759138241124,-170.64745108,0.00026548,30]
[388379161,1759138241134,-1905.75,0.00026587,2]
[388379162,1759138241143,-1905.75,0.00026587,2]
[388379163,1759138241153,-9767.8189186,0.00026588,2]
[388379164,1759138241163,-1905.75,0.00026597,2]
[388379165,1759138241172,-1905.75,0.00026597,2]
[388379166,1759138241181,-1905.75,0.00026597,2]
[388379167,1759138241191,-1905.75,0.00026597,2]
[388379168,1759138241200,-1905.75,0.00026597,2]
[388379169,1759138241209,-1905.75,0.00026597,2]
[388379170,1759138241219,-1905.75,0.00026597,2]
[388379171,1759138241228,-1905.75,0.00026597,2]
[388379172,1759138241237,-1905.75,0.00026597,2]
[388379173,1759138241248,-1905.75,0.00026597,2]
[388379174,1759138241257,-1905.75,0.00026597,2]
[388379175,1759138241267,-1905.75,0.00026597,2]
[388379176,1759138241276,-1905.75,0.00026597,2]
[388379177,1759138241286,-1905.75,0.00026597,2]
[388379178,1759138241295,-1905.82739937,0.00026597,2]
[388379179,1759138241305,-1000.0,0.000266,2]
[388379180,1759138241314,-151.0,0.000266,20]
[388379181,1759138241325,-151.0,0.00026607,7]
[388379182,1759138241334,-151.0,0.00026607,7]
[388379183,1759138241344,-151.0,0.00026607,7]
[388379184,1759138241353,-151.0,0.00026607,7]
[388379185,1759138241362,-151.0,0.00026607,7]
[388379186,1759138241371,-151.0,0.00026607,7]
[388379187,1759138241381,-151.0,0.00026607,7]
[388379188,1759138241390,-151.0,0.00026607,7]
[388379189,1759138241400,-151.0,0.00026607,7]
[388379190,1759138241409,-151.0,0.00026607,7]
[388379191,1759138241419,-151.0,0.00026607,7]
[388379192,1759138241428,-151.0,0.00026607,7]
[388379193,1759138241437,-153.732048,0.00026607,7]
[388379194,1759138241446,-151.0,0.00026607,7]
[388379195,1759138241455,-151.0,0.00026607,7]
[388379196,1759138241465,-151.0,0.00026607,7]
[388379197,1759138241474,-151.0,0.00026607,7]
[388379198,1759138241483,-151.0,0.00026607,7]
[388379199,1759138241492,-180.192848,0.00026607,7]
[388379200,1759138241501,-151.0,0.00026607,7]
[388379201,1759138241510,-151.0,0.00026607,7]
[388379202,1759138241520,-277.988155,0.00026607,7]
[388379203,1759138241529,-216.936309,0.00026607,7]
[388379204,1759138241538,-151.0,0.00026607,7]
[388379205,1759138241547,-152.028106,0.00026607,7]
[388379206,1759138241557,-151.0,0.00026607,7]
[388379207,1759138241566,-151.0,0.00026607,7]
[388379208,1759138241576,-151.0,0.00026607,7]
[388379209,1759138241585,-151.0,0.00026607,7]
[388379210,1759138241594,-151.0,0.00026607,7]
[388379211,1759138241604,-151.0,0.00026607,7]
[388379212,1759138241613,-151.0,0.00026607,7]
[388379213,1759138241622,-151.0,0.00026607,7]
[388379214,1759138241631,-261.378011,0.00026607,7]
[388379215,1759138241640,-151.0,0.00026607,7]
[388379216,1759138241650,-151.0,0.00026607,7]
[388379217,1759138241659,-151.0,0.00026607,7]
[388379218,1759138241669,-151.0,0.00026607,7]
[388379219,1759138241679,-151.0,0.00026607,7]
[388379220,1759138241689,-204.520269,0.00026607,7]
[388379221,1759138241699,-189.40172226,0.00026607,7]
[388379222,1759138241708,-233.87608454,0.00026607,7]
[388379223,1759138241717,-151.0,0.00026647,2]
[388379224,1759138241727,-500.0,0.00026652,10]
[388379225,1759138241736,-151.0,0.00026668,7]
[388379226,1759138241745,-195.152204,0.00026668,7]
[388379227,1759138241755,-151.0,0.00026668,7]
[388379228,1759138241764,-195.152204,0.00026668,7]
[388379229,1759138241773,-151.0,0.00026668,7]
[388379230,1759138241783,-195.152204,0.00026668,7]
[388379231,1759138241792,-195.152204,0.00026668,7]
[388379232,1759138241801,-285.185949,0.00026668,7]
[388379233,1759138241811,-151.0,0.00026668,7]
[388379234,1759138241820,-189.975523,0.00026668,7]
[388379235,1759138241829,-151.0,0.00026668,7]
[388379236,1759138241838,-151.0,0.00026668,7]
[388379237,1759138241847,-151.151682,0.00026668,7]
[388379238,1759138241857,-176.606136,0.00026668,7]
[388379239,1759138241866,-151.151682,0.00026668,7]
[388379240,1759138241875,-151.151682,0.00026668,7]
[388379241,1759138241885,-151.151682,0.00026668,7]
[388379242,1759138241895,-160.0,0.00026668,7]
[388379243,1759138241905,-1020.7121852,0.00026668,2]
[388379244,1759138241914,-481.93362647,0.00026668,2]
[388379245,1759138241923,-1500.0,0.00026668,2]
[388379246,1759138241932,-1500.0,0.00026668,2]
[388379247,1759138241942,-1500.0,0.00026668,2]
[388379248,1759138241951,-1500.0,0.00026668,2]
[388379249,1759138241960,-1500.0,0.00026668,2]
[388379250,1759138241969,-1500.0,0.00026668,2]
[388379251,1759138241978,-1500.0,0.00026668,2]
[388379252,1759138241987,-1500.0,0.00026668,2]
[388379253,1759138241996,-1362.22726213,0.00026668,2]
[388379254,1759138242005,-1500.0,0.00026668,2]
[388379255,1759138242016,-1500.0,0.00026668,2]
[388379256,1759138242025,-1458.32854004,0.00026668,2]
[388379257,1759138242034,-1500.0,0.00026668,2]
[388379258,1759138242043,-618.66300987,0.00026668,2]
[388379259,1759138242052,-1500.0,0.00026668,2]
[388379260,1759138242066,-1500.0,0.00026668,2]
[388379261,1759138242075,-1500.0,0.00026668,2]
[388379262,1759138242084,-1500.0,0.00026668,2]
[388379263,1759138242094,-530.19311456,0.00026668,2]
[388379264,1759138242104,-153.0,0.00026689,2]
[388379265,1759138242113,-153.0,0.00026689,2]
[388379266,1759138242122,-160.0,0.000267,2]
[388379267,1759138242132,-151.0,0.00026741,2]
[388379268,1759138242142,-151.0,0.00026741,2]
[388379269,1759138242152,-231.10711434,0.00026741,2]
[388379270,1759138242161,-500.0,0.00026741,2]
[388379271,1759138242170,-151.0,0.00026741,2]
[388379272,1759138242179,-500.0,0.00026741,2]
[388379273,1759138242188,-151.0,0.00026741,2]
[388379274,1759138242197,-151.0,0.00026741,2]
[388379275,1759138242206,-500.0,0.00026741,2]
[388379276,1759138242215,-151.0,0.00026741,2]
[388379277,1759138242224,-151.0,0.00026741,2]
[388379278,1759138242233,-151.0,0.00026741,2]
[388379279,1759138242243,-908.0,0.00026741,2]
[388379280,1759138242252,-151.0,0.00026741,2]
[388379281,1759138242262,-151.0,0.00026741,2]
[388379282,1759138242271,-154.01796608,0.00026741,2]
[388379283,1759138242280,-500.0,0.00026741,2]
[388379284,1759138242289,-219.4804218,0.00026741,2]
[388379285,1759138242298,-151.0,0.00026741,2]
[388379286,1759138242307,-500.0,0.00026741,2]
[388379287,1759138242316,-298.93206587,0.00026741,2]
[388379288,1759138242325,-500.0,0.00026741,2]
[388379289,1759138242335,-151.0,0.00026741,2]
[388379290,1759138242344,-151.0,0.00026741,2]
[388379291,1759138242353,-1344.90849805,0.00026761,2]
[388379292,1759138242363,-5114.30277399,0.00026761,2]
[388379293,1759138242371,-615.48380828,0.00026761,2]
[388379294,1759138242380,-458.73607792,0.00026761,2]
[388379295,1759138242389,-1834.94431168,0.00026761,2]
[388379296,1759138242399,-428.38384128,0.00026761,2]
[388379297,1759138242408,-1713.53536512,0.00026761,2]
[388379298,1759138242417,-274.92674016,0.00026761,2]
[388379299,1759138242427,-1594.80225475,0.00026761,2]
[388379300,1759138242436,-192.16804327,0.00026761,2]
[388379301,1759138242445,-4128.62470129,0.00026761,2]
[388379302,1759138242454,-3855.45457152,0.00026761,2]
[388379303,1759138242463,-492.77216836,0.00026761,2]
[388379304,1759138242471,-151.0,0.000268,19]
[388379305,1759138242480,-170.64745108,0.00026822,30]
[388379306,1759138242489,-153.371509,0.00026848,2]
[388379307,1759138242498,-500.0,0.00026876,2]
[388379308,1759138242507,-153.371509,0.00026897,2]
[388379309,1759138242516,-160.075698,0.00026897,2]
[388379310,1759138242526,-600.0,0.00026905,7]
[388379311,1759138242536,-4328.16,0.00026916,3]
[388379312,1759138242546,-2164.08,0.00026916,3]
[388379313,1759138242555,-1082.04,0.00026916,3]
[388379314,1759138242565,-541.02,0.00026916,3]
[388379315,1759138242575,-2214.32,0.00026916,3]
[388379316,1759138242584,-1107.16,0.00026916,3]
[388379317,1759138242594,-553.58,0.00026916,3]
[388379318,1759138242604,-160.0,0.00026916,3]
[388379319,1759138242614,-160.0,0.00026916,3]
[388379320,1759138242623,-500.0,0.00026926,10]
[388379321,1759138242633,-259.0,0.00026953,2]
[388379322,1759138242642,-170.64745108,0.00026959,30]
[388379323,1759138242652,-1981.2331067,0.00026972,2]
[388379324,1759138242662,-151.0,0.00026984,3]
[388379325,1759138242671,-158.20408301,0.00026984,3]
[388379326,1759138242681,-1000.0,0.00026986,10]
[388379327,1759138242691,-1000.0,0.00026986,10]
[388379328,1759138242700,-1000.0,0.00026986,10]
[388379329,1759138242710,-1000.0,0.00026986,10]
[388379330,1759138242719,-1000.0,0.00026986,10]
[388379331,1759138242728,-1000.0,0.00026986,10]
[388379332,1759138242737,-1000.0,0.00026986,10]
[388379333,1759138242747,-221.95534938,0.00026986,10]
[388379334,1759138242756,-233.87608454,0.00026986,10]
[388379335,1759138242766,-189.40172226,0.00026986,10]
[388379336,1759138242775,-160.0,0.00026986,10]
[388379337,1759138242784,-160.0,0.00026986,10]
[388379338,1759138242794,-160.0,0.00026986,10]
[388379340,1759138242803,-151.0,0.00027,13]
[388379343,1759138242813,-153.371509,0.00027,24]
[388379345,1759138242823,-5714.37,0.00027,2]
[388379347,1759138242832,-45072.34937053,0.00027,3]
[388379349,1759138242841,-151.0,0.00027,7]
[388379351,1759138242850,-151.0,0.00027,7]
[388379353,1759138242859,-4498.904458,0.00027,7]
[388379354,1759138242868,-151.0,0.00027,7]
[388379355,1759138242878,-4498.904458,0.00027,7]
[388379356,1759138242887,-4498.904458,0.00027,7]
[388379357,1759138242896,-154.09379,0.00027,7]
[388379358,1759138242907,-4498.904458,0.00027,7]
[388379359,1759138242917,-151.0,0.00027,7]
[388379361,1759138242926,-677.891366,0.00027,7]
[388379362,1759138242935,-677.891366,0.00027,7]
[388379363,1759138242945,-677.891366,0.00027,7]
[388379364,1759138242954,-233.87608454,0.00027,3]
[388379365,1759138242964,-677.891366,0.00027,7]
[388379366,1759138242973,-189.40172226,0.00027,3]
[388379367,1759138242982,-154.746035,0.00027,7]
[388379368,1759138242991,-195.85823,0.00027,7]
[388379369,1759138243001,-151.0,0.00027015,2]
[388379370,1759138243011,-500.0,0.00027015,2]
[388379371,1759138243020,-151.0,0.00027015,2]
[388379372,1759138243030,-500.0,0.00027015,2]
[388379373,1759138243039,-151.0,0.00027015,2]
[388379374,1759138243048,-192.28915233,0.00027015,2]
[388379375,1759138243061,-604.0,0.00027015,2]
[388379376,1759138243070,-151.0,0.00027015,2]
[388379377,1759138243081,-151.0,0.00027015,2]
[388379378,1759138243090,-151.0,0.00027015,2]
[388379379,1759138243100,-908.0,0.00027015,2]
[388379380,1759138243109,-151.0,0.00027015,2]
[388379381,1759138243118,-151.0,0.00027015,2]
[388379382,1759138243127,-500.0,0.00027015,2]
[388379383,1759138243139,-500.0,0.00027015,2]
[388379384,1759138243148,-500.0,0.00027015,2]
[388379385,1759138243158,-151.0,0.00027015,2]
[388379386,1759138243167,-151.0,0.00027015,2]
[388379387,1759138243176,-259.0,0.00027038,7]
[388379388,1759138243185,-250.0,0.00027044,2]
[388379390,1759138243195,-166.0,0.00027073,3]
[388379391,1759138243204,-341.11617394,0.00027073,3]
[388379392,1759138243213,-151.0,0.00027073,7]
[388379393,1759138243222,-151.0,0.00027073,7]
[388379394,1759138243231,-151.0,0.00027073,7]
[388379395,1759138243241,-151.0,0.00027073,7]
[388379396,1759138243250,-151.0,0.00027073,7]
[388379397,1759138243259,-234.265696,0.00027073,7]
[388379398,1759138243269,-234.265696,0.00027073,7]
[388379399,1759138243278,-234.265696,0.00027073,7]
[388379400,1759138243288,-234.265696,0.00027073,7]
[388379401,1759138243297,-151.0,0.00027073,7]
[388379402,1759138243306,-259.0,0.0002708,2]
[388379403,1759138243315,-2119.99486602,0.00027087,2]
[388379404,1759138243325,-600.0,0.0002709,2]
[388379405,1759138243334,-259.0,0.00027095,2]
[388379406,1759138243343,-170.64745108,0.00027096,30]
[388379407,1759138243352,-600.0,0.00027112,2]
[388379408,1759138243362,-800.0,0.00027135,2]
[388379409,1759138243372,-158.13261555,0.00027154,3]
[388379410,1759138243381,-166.0,0.00027154,3]
[388379411,1759138243390,-800.0,0.00027172,2]
[388379412,1759138243399,-800.0,0.00027173,2]
[388379413,1759138243408,-800.0,0.00027177,2]
[388379414,1759138243417,-151.0,0.00027189,7]
[388379415,1759138243426,-151.0,0.00027189,7]
[388379416,1759138243435,-151.528318,0.00027189,7]
[388379417,1759138243444,-1021.287304,0.00027189,7]
[388379418,1759138243453,-1021.287304,0.00027189,7]
[388379419,1759138243462,-152.23786,0.00027189,7]
[388379420,1759138243471,-1021.287304,0.00027189,7]
[388379421,1759138243480,-1021.287304,0.00027189,7]
[388379422,1759138243489,-168.764124,0.00027189,7]
[388379423,1759138243499,-151.0,0.00027189,7]
[388379424,1759138243508,-151.0,0.00027189,7]
[388379425,1759138243518,-151.0,0.00027189,7]